fUST/lending_fUST_20250720
["ID","MTS","AMOUNT","RATE_DAILY","PERIOD"]
[373318666,1752943850080,-575.61,0.00021016,2]
[373318668,1752943850090,-468.29,0.00021016,2]
[373318670,1752943850100,-750.54,0.00021016,2]
[373318673,1752943850110,-574.55,0.00021016,2]
[373318675,1752943850119,-2000.0,0.00021016,2]
[373318677,1752943850129,-224.2,0.0002106,2]
[373318679,1752943850139,-460.0,0.00021115,2]
[373318681,1752943850148,-151.0,0.00021116,2]
[373318683,1752943850158,-151.0,0.00021116,2]
[373318685,1752943850168,-151.0,0.00021116,2]
[373318687,1752943850178,-2000.0,0.00021144,2]
[373318689,1752943850187,-500.0,0.00021217,2]
[373318691,1752943850197,-478.0,0.00021217,2]
[373318693,1752943850211,-660.0,0.00021219,2]
[373318695,1752943850221,-6062.61988568,0.00021245,4]
[373318697,1752943850231,-1199.35,0.00021286,2]
[373318699,1752943850240,-460.0,0.00021287,2]
[373318702,1752943850250,-618.24,0.00021287,2]
[373318704,1752943850264,-1170.39,0.00021289,2]
[373318706,1752943850274,-525.57,0.00021289,2]
[373318708,1752943850284,-888.54,0.00021289,2]
[373318710,1752943850293,-460.0,0.00021289,2]
[373318712,1752943850303,-151.0,0.00021289,2]
[373318714,1752943850313,-606.41,0.0002129,2]
[373318716,1752943850322,-1762.36,0.0002129,2]
[373318718,1752943850331,-575.61,0.0002129,2]
[373318720,1752943850343,-468.29,0.0002129,2]
[373318722,1752943850356,-750.54,0.0002129,2]
[373318725,1752943850366,-574.55,0.0002129,2]
[373318727,1752943850376,-215.0738,0.0002132,2]
[373318729,1752943850385,-151.0,0.00021333,2]
[373318731,1752943850395,-165.444064,0.00021333,2]
[373318733,1752943850405,-165.444064,0.00021333,2]
[373318735,1752943850415,-151.0,0.00021333,2]
[373318737,1752943850426,-460.0,0.00021389,2]
[373318739,1752943850435,-206.0,0.0002141,2]
[373318741,1752943850445,-679.88427532,0.00021413,2]
[373318743,1752943850454,-1500.0,0.00021413,2]
[373318745,1752943850464,-2000.0,0.00021413,2]
[373318747,1752943850474,-500.0,0.00021435,2]
[373318749,1752943850483,-501.4575332,0.00021435,2]
[373318751,1752943850493,-500.0,0.00021435,2]
[373318753,1752943850503,-339.187051,0.00021486,2]
[373318755,1752943850513,-339.187051,0.00021486,2]
[373318757,1752943850522,-500.0,0.00021491,2]
[373318760,1752943850532,-478.0,0.00021491,2]
[373318762,1752943850541,-450.02941972,0.00021514,2]
[373318764,1752943850551,-500.0,0.00021522,2]
[373318766,1752943850560,-6062.61988568,0.00021555,5]
[373318768,1752943850570,-1199.35,0.0002156,2]
[373318770,1752943850579,-460.0,0.00021561,2]
[373318772,1752943850590,-618.24,0.00021561,2]
[373318774,1752943850599,-1170.39,0.00021563,2]
[373318776,1752943850610,-525.57,0.00021563,2]
[373318778,1752943850619,-888.54,0.00021563,2]
[373318780,1752943850629,-460.0,0.00021563,2]
[373318782,1752943850639,-606.41,0.00021564,2]
[373318784,1752943850649,-1762.36,0.00021564,2]
[373318786,1752943850658,-575.61,0.00021564,2]
[373318788,1752943850668,-468.29,0.00021564,2]
[373318790,1752943850678,-750.54,0.00021564,2]
[373318806,1752943850825,-574.55,0.00021564,2]
[373318809,1752943850837,-2500.0,0.00021564,2]
[373318811,1752943850846,-700.0,0.00021612,2]
[373318813,1752943850856,-162.17756,0.00021625,4]
[373318815,1752943850866,-460.0,0.00021663,2]
[373318817,1752943850877,-175.627756,0.00021663,2]
[373318819,1752943850887,-2311.52945269,0.00021692,2]
[373318821,1752943850898,-151.0,0.000217,3]
[373318823,1752943850908,-863.47559,0.00021756,8]
[373318825,1752943850918,-500.0,0.00021765,2]
[373318827,1752943850927,-478.0,0.00021765,2]
[373318829,1752943850938,-280.0,0.00021767,2]
[373318831,1752943850947,-162.17756,0.00021778,3]
[373318833,1752943850957,-206.0,0.0002181,2]
[373318835,1752943850969,-1199.35,0.00021834,2]
[373318837,1752943850979,-460.0,0.00021835,2]
[373318839,1752943850990,-618.24,0.00021835,2]
[373318841,1752943850999,-525.57,0.00021836,2]
[373318843,1752943851009,-1170.39,0.00021837,2]
[373318845,1752943851018,-888.54,0.00021837,2]
[373318848,1752943851029,-238.28648344,0.00021837,2]
[373318850,1752943851039,-606.41,0.00021838,2]
[373318852,1752943851058,-1762.36,0.00021838,2]
[373318854,1752943851070,-575.61,0.00021838,2]
[373318856,1752943851080,-468.29,0.00021838,2]
[373318858,1752943851090,-750.54,0.00021838,2]
[373318860,1752943851100,-574.55,0.00021838,2]
[373318862,1752943851112,-250.0,0.00021842,2]
[373318864,1752943851121,-800.0,0.00021847,2]
[373318866,1752943851131,-6062.61988568,0.00021866,6]
[373318868,1752943851139,-836.0,0.00021867,2]
[373318870,1752943851149,-836.0,0.00021876,2]
[373318872,1752943851158,-216.14992921,0.00021917,2]
[373318874,1752943851167,-500.0,0.00021917,2]
[373318876,1752943851176,-500.0,0.00021917,2]
[373318878,1752943851186,-153.0,0.00021918,2]
[373318880,1752943851195,-153.0,0.00021918,2]
[373318882,1752943851204,-153.0,0.00021918,2]
[373318884,1752943851213,-153.0,0.00021918,2]
[373318886,1752943851222,-153.0,0.00021918,2]
[373318888,1752943851231,-153.0,0.00021918,2]
[373318890,1752943851240,-153.0,0.00021918,2]
[373318892,1752943851250,-153.0,0.00021918,2]
[373318894,1752943851259,-153.0,0.00021918,2]
[373318896,1752943851268,-153.0,0.00021918,2]
[373318898,1752943851278,-153.0,0.00021918,2]
[373318900,1752943851288,-153.0,0.00021918,2]
[373318902,1752943851298,-153.0,0.00021918,2]
[373318904,1752943851307,-153.0,0.00021918,2]
[373318906,1752943851317,-153.0,0.00021918,2]
[373318908,1752943851327,-153.0,0.00021918,2]
[373318910,1752943851336,-153.0,0.00021918,2]
[373318912,1752943851346,-153.0,0.00021918,2]
[373318914,1752943851355,-153.0,0.00021918,2]
[373318916,1752943851365,-153.0,0.00021918,2]
[373318918,1752943851374,-153.0,0.00021918,2]
[373318920,1752943851384,-153.0,0.00021918,2]
[373318922,1752943851393,-153.0,0.00021918,2]
[373318924,1752943851403,-153.0,0.00021918,2]
[373318926,1752943851413,-153.0,0.00021918,2]
[373318928,1752943851423,-153.0,0.00021918,2]
[373318930,1752943851432,-153.0,0.00021918,2]
[373318932,1752943851441,-153.0,0.00021918,2]
[373318934,1752943851451,-153.0,0.00021918,2]
[373318936,1752943851460,-153.0,0.00021918,2]
[373318938,1752943851470,-153.0,0.00021918,2]
[373318940,1752943851479,-153.0,0.00021918,2]
[373318942,1752943851489,-153.0,0.00021918,2]
[373318944,1752943851498,-153.0,0.00021918,2]
[373318946,1752943851507,-153.0,0.00021918,2]
[373318949,1752943851527,-153.0,0.00021918,2]
[373318951,1752943851539,-153.0,0.00021918,2]
[373318954,1752943851548,-153.0,0.00021918,2]
[373318956,1752943851558,-153.0,0.00021918,2]
[373318958,1752943851568,-153.0,0.00021918,2]
[373318960,1752943851578,-153.0,0.00021918,2]
[373318962,1752943851589,-153.0,0.00021918,2]
[373318964,1752943851599,-153.0,0.00021918,2]
[373318966,1752943851609,-153.0,0.00021918,2]
[373318968,1752943851620,-153.0,0.00021918,2]
[373318970,1752943851630,-153.0,0.00021918,2]
[373318972,1752943851640,-153.0,0.00021918,2]
[373318974,1752943851650,-153.0,0.00021918,2]
[373318976,1752943851660,-153.0,0.00021918,2]
[373318978,1752943851670,-153.0,0.00021918,2]
[373318980,1752943851679,-153.0,0.00021918,2]
[373318982,1752943851689,-153.0,0.00021918,2]
[373318984,1752943851699,-153.0,0.00021918,2]
[373318986,1752943851709,-153.0,0.00021918,2]
[373318988,1752943851720,-153.0,0.00021918,2]
[373318990,1752943851732,-153.0,0.00021918,2]
[373318992,1752943851742,-153.0,0.00021918,2]
[373318994,1752943851752,-153.0,0.00021918,2]
[373318996,1752943851762,-153.0,0.00021918,2]
[373318998,1752943851774,-153.0,0.00021918,2]
[373319000,1752943851784,-153.0,0.00021918,2]
[373319002,1752943851795,-153.0,0.00021918,2]
[373319004,1752943851805,-153.0,0.00021918,2]
[373319006,1752943851815,-153.0,0.00021918,2]
[373319008,1752943851825,-153.0,0.00021918,2]
[373319010,1752943851836,-153.0,0.00021918,2]
[373319013,1752943851846,-153.0,0.00021918,2]
[373319014,1752943851855,-153.0,0.00021918,2]
[373319016,1752943851865,-153.0,0.00021918,2]
[373319018,1752943851875,-153.0,0.00021918,2]
[373319020,1752943851885,-153.0,0.00021918,2]
[373319022,1752943851896,-153.0,0.00021918,2]
[373319024,1752943851906,-153.0,0.00021918,2]
[373319026,1752943851916,-153.0,0.00021918,2]
[373319028,1752943851926,-153.0,0.00021918,2]
[373319030,1752943851935,-153.0,0.00021918,2]
[373319032,1752943851946,-153.0,0.00021918,2]
[373319034,1752943851956,-153.0,0.00021918,2]
[373319036,1752943851966,-153.0,0.00021918,2]
[373319038,1752943851975,-153.0,0.00021918,2]
[373319040,1752943851987,-153.0,0.00021918,2]
[373319042,1752943851997,-153.0,0.00021918,2]
[373319044,1752943852006,-153.0,0.00021918,2]
[373319046,1752943852016,-153.0,0.00021918,2]
[373319048,1752943852027,-153.0,0.00021918,2]
[373319051,1752943852036,-153.0,0.00021918,2]
[373319053,1752943852046,-153.0,0.00021918,2]
[373319054,1752943852056,-153.0,0.00021918,2]
[373319056,1752943852065,-153.0,0.00021918,2]
[373319058,1752943852076,-153.0,0.00021918,2]
[373319060,1752943852086,-153.0,0.00021918,2]
[373319063,1752943852096,-153.0,0.00021918,2]
[373319065,1752943852106,-153.0,0.00021918,2]
[373319066,1752943852115,-153.0,0.00021918,2]
[373319068,1752943852126,-153.0,0.00021918,2]
[373319071,1752943852139,-153.0,0.00021918,2]
[373319073,1752943852149,-153.0,0.00021918,2]
[373319075,1752943852158,-153.0,0.00021918,2]
[373319077,1752943852168,-153.0,0.00021918,2]
[373319079,1752943852178,-153.0,0.00021918,2]
[373319081,1752943852188,-153.0,0.00021918,2]
[373319083,1752943852198,-153.0,0.00021918,2]
[373319085,1752943852207,-153.0,0.00021918,2]
[373319087,1752943852216,-153.0,0.00021918,2]
[373319089,1752943852226,-153.0,0.00021918,2]
[373319091,1752943852236,-153.0,0.00021918,2]
[373319093,1752943852245,-153.0,0.00021918,2]
[373319095,1752943852255,-153.0,0.00021918,2]
[373319097,1752943852265,-153.0,0.00021918,2]
[373319099,1752943852274,-151.0,0.00021918,2]
[373319101,1752943852284,-151.0,0.00021918,2]
[373319103,1752943852295,-151.0,0.00021918,2]
[373319105,1752943852305,-151.0,0.00021918,2]
[373319107,1752943852316,-151.0,0.00021918,2]
[373319109,1752943852325,-151.0,0.00021918,2]
[373319111,1752943852335,-252.530506,0.00021918,2]
[373319113,1752943852344,-152.0,0.00021918,2]
[373319115,1752943852354,-150.0,0.00021918,2]
[373319117,1752943852364,-150.0,0.00021918,2]
[373319119,1752943852374,-200.0,0.00021918,2]
[373319121,1752943852383,-151.0,0.00021918,7]
[373319123,1752943852393,-151.0,0.00021918,7]
[373319125,1752943852403,-151.0,0.00021918,7]
[373319127,1752943852412,-151.0,0.00021918,7]
[373319129,1752943852422,-151.0,0.00021918,7]
[373319131,1752943852432,-974.40545,0.00021918,2]
[373319133,1752943852441,-151.0,0.00021918,7]
[373319135,1752943852451,-769.721315,0.00021918,7]
[373319137,1752943852460,-769.721315,0.00021918,7]
[373319139,1752943852470,-151.0,0.00021918,7]
[373319141,1752943852479,-460.0,0.00021937,2]
[373319143,1752943852488,-151.0,0.00021938,7]
[373319145,1752943852497,-151.0,0.00021938,7]
[373319147,1752943852507,-174.694673,0.00021938,7]
[373319149,1752943852517,-836.0,0.00021958,2]
[373319151,1752943852526,-1000.0,0.00021961,2]
[373319153,1752943852536,-836.0,0.00021985,2]
[373319155,1752943852546,-151.0,0.00021985,7]
[373319157,1752943852555,-151.0,0.0002199,7]
[373319159,1752943852565,-151.0,0.0002199,7]
[373319161,1752943852575,-165.444064,0.0002199,7]
[373319163,1752943852586,-165.444064,0.0002199,7]
[373319165,1752943852595,-151.0,0.0002199,7]
[373319167,1752943852605,-151.0,0.0002199,7]
[373319169,1752943852615,-151.0,0.0002199,7]
[373319171,1752943852624,-339.187051,0.0002199,7]
[373319173,1752943852634,-339.187051,0.0002199,7]
[373319175,1752943852644,-151.0,0.0002199,7]
[373319177,1752943852654,-151.0,0.0002199,7]
[373319179,1752943852664,-151.0,0.0002199,7]
[373319181,1752943852673,-769.721315,0.0002199,7]
[373319183,1752943852683,-769.721315,0.0002199,7]
[373319185,1752943852693,-151.0,0.0002199,7]
[373319187,1752943852703,-2063.36,0.00022,7]
[373319189,1752943852713,-10686.32,0.00022,7]
[373319191,1752943852724,-2567.0,0.00022,2]
[373319193,1752943852734,-2567.0,0.00022,2]
[373319195,1752943852743,-2567.0,0.00022,2]
[373319197,1752943852753,-2567.0,0.00022,2]
[373319199,1752943852764,-2567.0,0.00022,2]
[373319201,1752943852774,-2567.0,0.00022,2]
[373319203,1752943852784,-2567.0,0.00022,2]
[373319205,1752943852794,-2567.0,0.00022,2]
[373319207,1752943852804,-2567.0,0.00022,2]
[373319209,1752943852813,-2567.0,0.00022,2]
[373319211,1752943852822,-5947.87,0.00022,7]
[373319213,1752943852832,-151.0,0.00022,7]
[373319215,1752943852843,-162.17756,0.00022,14]
[373319217,1752943852852,-168.0,0.00022,2]
[373319219,1752943852862,-214.52603969,0.00022,7]
[373319221,1752943852872,-192.0,0.00022,2]
[373319223,1752943852882,-175.627756,0.00022,7]
[373319225,1752943852892,-500.0,0.00022039,2]
[373319227,1752943852902,-478.0,0.00022039,2]
[373319229,1752943852912,-571.55,0.00022108,2]
[373319231,1752943852922,-1199.35,0.00022108,2]
[373319233,1752943852932,-460.0,0.00022109,2]
[373319235,1752943852941,-618.24,0.00022109,2]
[373319237,1752943852951,-525.57,0.0002211,2]
[373319239,1752943852960,-1170.39,0.00022111,2]
[373319241,1752943852977,-888.54,0.00022111,2]
[373319243,1752943852987,-606.41,0.00022112,2]
[373319245,1752943852997,-1762.36,0.00022112,2]
[373319247,1752943853007,-575.61,0.00022112,2]
[373319249,1752943853016,-468.29,0.00022112,2]
[373319251,1752943853026,-750.54,0.00022112,2]
[373319253,1752943853036,-574.55,0.00022112,2]
[373319255,1752943853046,-506.81965426,0.00022112,2]
[373319257,1752943853056,-836.0,0.00022141,2]
[373319259,1752943853066,-6062.61988568,0.00022176,6]
[373319261,1752943853075,-192.0,0.00022192,7]
[373319263,1752943853087,-46307.25011779,0.000222,2]
[373319265,1752943853098,-151.0,0.000222,7]
[373319267,1752943853108,-151.0,0.000222,7]
[373319269,1752943853118,-151.0,0.000222,7]
[373319271,1752943853128,-547.894044,0.000222,7]
[373319273,1752943853137,-547.894044,0.000222,7]
[373319275,1752943853147,-248.50299502,0.000222,2]
[373319277,1752943853157,-151.0,0.000222,7]
[373319279,1752943853166,-500.53907182,0.000222,2]
[373319281,1752943853176,-172.0,0.000222,3]
[373319283,1752943853186,-172.0,0.000222,3]
[373319285,1752943853195,-172.0,0.000222,3]
[373319287,1752943853205,-172.0,0.000222,3]
[373319289,1752943853215,-172.0,0.000222,3]
[373319291,1752943853225,-173.95685811,0.000222,3]
[373319293,1752943853235,-1752.0,0.000222,3]
[373319295,1752943853244,-1752.0,0.000222,3]
[373319297,1752943853254,-1752.0,0.000222,3]
[373319299,1752943853264,-1752.0,0.000222,3]
[373319301,1752943853274,-1752.0,0.000222,3]
[373319303,1752943853283,-1752.0,0.000222,3]
[373319305,1752943853293,-1784.10004566,0.000222,3]
[373319312,1752943853354,-151.0,0.000222,7]
[373319314,1752943853364,-165.444064,0.000222,7]
[373319316,1752943853374,-165.444064,0.000222,7]
[373319318,1752943853383,-181.335055,0.000222,7]
[373319320,1752943853393,-151.0,0.000222,7]
[373319322,1752943853403,-339.187051,0.000222,7]
[373319324,1752943853412,-339.187051,0.000222,7]
[373319326,1752943853421,-151.0,0.000222,7]
[373319328,1752943853431,-151.0,0.000222,7]
[373319330,1752943853440,-151.0,0.000222,7]
[373319332,1752943853449,-769.721315,0.000222,7]
[373319334,1752943853459,-769.721315,0.000222,7]
[373319336,1752943853468,-151.0,0.000222,7]
[373319338,1752943853478,-151.0,0.000222,7]
[373319340,1752943853487,-151.0,0.000222,7]
[373319342,1752943853496,-206.0,0.0002221,2]
[373319344,1752943853506,-217.62,0.00022211,2]
[373319346,1752943853515,-162.17756,0.00022245,6]
[373319348,1752943853524,-162.17756,0.0002225,4]
[373319350,1752943853533,-1240.61968907,0.00022261,2]
[373319352,1752943853542,-152.0,0.00022261,3]
[373319354,1752943853551,-152.0,0.00022261,3]
[373319356,1752943853561,-152.0,0.00022261,3]
[373319358,1752943853571,-152.0,0.00022261,3]
[373319360,1752943853580,-152.0,0.00022261,3]
[373319362,1752943853590,-152.0,0.00022261,3]
[373319364,1752943853599,-152.0,0.00022261,3]
[373319366,1752943853609,-152.0,0.00022261,3]
[373319368,1752943853618,-152.0,0.00022261,3]
[373319369,1752943853628,-152.0,0.00022261,3]
[373319371,1752943853637,-152.0,0.00022261,3]
[373319373,1752943853646,-152.0,0.00022261,3]
[373319375,1752943853655,-152.0,0.00022261,3]
[373319377,1752943853665,-152.0,0.00022261,3]
[373319379,1752943853674,-152.0,0.00022261,3]
[373319381,1752943853683,-152.0,0.00022261,3]
[373319383,1752943853693,-152.0,0.00022261,3]
[373319385,1752943853703,-152.0,0.00022261,3]
[373319387,1752943853713,-152.0,0.00022261,3]
[373319389,1752943853724,-152.0,0.00022261,3]
[373319391,1752943853734,-152.0,0.00022261,3]
[373319393,1752943853743,-152.0,0.00022261,3]
[373319394,1752943853753,-152.0,0.00022261,3]
[373319395,1752943853763,-152.0,0.00022261,3]
[373319396,1752943853772,-152.0,0.00022261,3]
[373319397,1752943853781,-152.0,0.00022261,3]
[373319398,1752943853791,-152.0,0.00022261,3]
[373319399,1752943853803,-152.0,0.00022261,3]
[373319400,1752943853814,-152.0,0.00022261,3]
[373319401,1752943853823,-152.0,0.00022261,3]
[373319402,1752943853832,-152.0,0.00022261,3]
[373319403,1752943853843,-152.0,0.00022261,3]
[373319404,1752943853852,-152.0,0.00022261,3]
[373319405,1752943853862,-152.0,0.00022261,3]
[373319406,1752943853872,-152.0,0.00022261,3]
[373319407,1752943853882,-152.0,0.00022261,3]
[373319408,1752943853892,-152.0,0.00022261,3]
[373319409,1752943853902,-152.0,0.00022261,3]
[373319410,1752943853912,-152.0,0.00022261,3]
[373319411,1752943853922,-152.0,0.00022261,3]
[373319412,1752943853931,-152.0,0.00022261,3]
[373319413,1752943853942,-152.0,0.00022261,3]
[373319414,1752943853952,-152.0,0.00022261,3]
[373319415,1752943853962,-152.0,0.00022261,3]
[373319416,1752943853973,-152.0,0.00022261,3]
[373319417,1752943853983,-152.0,0.00022261,3]
[373319418,1752943853993,-152.0,0.00022261,3]
[373319420,1752943854003,-152.0,0.00022261,3]
[373319421,1752943854013,-152.0,0.00022261,3]
[373319423,1752943854023,-152.0,0.00022261,3]
[373319425,1752943854032,-152.0,0.00022261,3]
[373319427,1752943854041,-152.0,0.00022261,3]
[373319429,1752943854051,-152.0,0.00022261,3]
[373319431,1752943854061,-152.0,0.00022261,3]
[373319433,1752943854070,-152.0,0.00022261,3]
[373319435,1752943854080,-163.12973459,0.00022261,3]
[373319438,1752943854092,-152.0,0.00022261,3]
[373319440,1752943854102,-152.0,0.00022261,3]
[373319442,1752943854113,-152.0,0.00022261,3]
[373319444,1752943854123,-152.0,0.00022261,3]
[373319446,1752943854133,-152.0,0.00022261,3]
[373319448,1752943854143,-836.0,0.00022296,2]
[373319450,1752943854153,-11026.87180869,0.000223,2]
[373319452,1752943854163,-500.0,0.00022313,2]
[373319454,1752943854174,-478.0,0.00022313,2]
[373319456,1752943854184,-151.459635,0.00022316,7]
[373319458,1752943854194,-836.0,0.00022316,2]
[373319460,1752943854204,-836.0,0.00022376,2]
[373319462,1752943854213,-135.90143106,0.00022383,2]
[373322511,1752944764758,397.71716,0.00013699,2]
[373322524,1752945032767,-300.0,0.00016626,2]
[373322525,1752945032777,-300.0,0.00016626,2]
[373322526,1752945032787,-221.76245155,0.00016626,2]
[373322548,1752945038502,-548.23754845,0.00016626,2]
[373322549,1752945038512,-500.0,0.00016627,2]
[373322550,1752945038522,-500.0,0.00016627,2]
[373322551,1752945038534,-500.0,0.00016627,2]
[373322552,1752945038544,-500.0,0.00016627,2]
[373322553,1752945038554,-452.88557474,0.00016627,2]
[373322554,1752945038564,-460.0,0.00016628,2]
[373322555,1752945038574,-460.0,0.00016629,2]
[373322556,1752945038583,-460.0,0.00016902,2]
[373322557,1752945038593,-460.0,0.00016903,2]
[373322558,1752945038603,-460.0,0.00017004,2]
[373322559,1752945038612,-529.46552197,0.00017004,2]
[373322560,1752945038623,-248.43437843,0.00017004,2]
[373322561,1752945038635,-211.56562157,0.00017004,2]
[373322562,1752945038645,-460.0,0.00017004,2]
[373322563,1752945038655,-460.0,0.00017004,2]
[373322565,1752945038665,-829.05,0.00017004,2]
[373322567,1752945038675,-460.0,0.00017004,2]
[373322569,1752945038684,-460.0,0.00017004,2]
[373322571,1752945038694,-339.04098475,0.00017004,2]
[373322573,1752945038704,-460.0,0.00017004,2]
[373322575,1752945038715,-281.95789548,0.00017174,2]
[373322577,1752945038724,-460.0,0.00017174,2]
[373322579,1752945038733,-622.2,0.00017174,2]
[373322581,1752945038742,-1450.64,0.00017174,2]
[373322583,1752945038752,-460.0,0.00017174,2]
[373322585,1752945038762,-719.84,0.00017174,2]
[373322587,1752945038772,-190.41170597,0.00017174,2]
[373322589,1752945038784,-269.58829403,0.00017174,2]
[373322590,1752945038794,-460.0,0.00017174,2]
[373322591,1752945038803,-157.15794737,0.00017174,2]
[373322592,1752945038815,-288.12,0.00017174,2]
[373322596,1752945040756,-14.72205263,0.00017174,2]
[373322597,1752945040766,-460.0,0.00017174,2]
[373322598,1752945040776,-280.34911288,0.00017174,2]
[373322599,1752945040787,-179.65088712,0.00017174,2]
[373322600,1752945040797,-460.0,0.00017174,2]
[373322601,1752945040807,-57.16123191,0.00017174,2]
[373322602,1752945040819,-402.83876809,0.00017174,2]
[373322603,1752945040829,-460.0,0.00017174,2]
[373322604,1752945040844,-1398.46,0.00017174,2]
[373322605,1752945040853,-460.0,0.00017175,2]
[373322606,1752945040862,-460.0,0.00017175,2]
[373322607,1752945040872,-460.0,0.00017175,2]
[373322608,1752945040881,-1414.02,0.00017175,2]
[373322609,1752945040891,-460.0,0.00017175,2]
[373322610,1752945040901,-460.0,0.00017176,2]
[373322611,1752945040910,-170.74,0.00017177,2]
[373322612,1752945040920,-460.0,0.00017177,2]
[373322613,1752945040929,-460.0,0.00017177,2]
[373322614,1752945040940,-631.23,0.00017177,2]
[373322615,1752945040949,-460.0,0.00017177,2]
[373322616,1752945040958,-460.0,0.00017177,2]
[373322617,1752945040968,-200.9,0.00017214,2]
[373322618,1752945040977,-460.0,0.00017278,2]
[373322619,1752945040987,-460.0,0.00017278,2]
[373322620,1752945040996,-460.0,0.00017278,2]
[373322621,1752945041006,-829.05,0.00017278,2]
[373322622,1752945041016,-460.0,0.00017278,2]
[373322623,1752945041025,-460.0,0.00017278,2]
[373322624,1752945041034,-622.2,0.00017448,2]
[373322625,1752945041043,-1450.64,0.00017448,2]
[373322626,1752945041053,-460.0,0.00017448,2]
[373322627,1752945041062,-719.84,0.00017448,2]
[373322628,1752945041072,-460.0,0.00017448,2]
[373322629,1752945041090,-535.86810709,0.00017448,2]
[373322630,1752945041100,-460.0,0.00017448,2]
[373322631,1752945041110,-460.0,0.00017448,2]
[373322632,1752945041119,-460.0,0.00017448,2]
[373322633,1752945041129,-460.0,0.00017448,2]
[373322634,1752945041138,-1398.46,0.00017448,2]
[373322635,1752945041147,-460.0,0.00017449,2]
[373322636,1752945041157,-460.0,0.00017449,2]
[373322637,1752945041167,-1414.02,0.00017449,2]
[373322638,1752945041177,-482.96,0.00017449,2]
[373322639,1752945041187,-460.0,0.0001745,2]
[373322640,1752945041197,-460.0,0.00017451,2]
[373322641,1752945041207,-460.0,0.00017451,2]
[373322642,1752945041216,-631.23,0.00017451,2]
[373322643,1752945041226,-460.0,0.00017451,2]
[373322644,1752945041235,-460.0,0.00017451,2]
[373322645,1752945041245,-460.0,0.00017552,2]
[373322646,1752945041255,-598.37213994,0.00017552,2]
[373322647,1752945041266,-460.0,0.00017552,2]
[373322648,1752945041276,-829.05,0.00017552,2]
[373322649,1752945041286,-470.42,0.00017552,2]
[373322650,1752945041296,-460.0,0.00017552,2]
[373322651,1752945041306,-622.2,0.00017722,2]
[373322652,1752945041316,-1450.64,0.00017722,2]
[373322653,1752945041326,-460.0,0.00017722,2]
[373322654,1752945041336,-719.84,0.00017722,2]
[373322655,1752945041346,-460.0,0.00017722,2]
[373322656,1752945041356,-460.0,0.00017722,2]
[373322657,1752945041366,-460.0,0.00017722,2]
[373322658,1752945041376,-460.0,0.00017722,2]
[373322659,1752945041386,-460.0,0.00017722,2]
[373322660,1752945041395,-1398.46,0.00017722,2]
[373322661,1752945041405,-460.0,0.00017723,2]